[Event "Titled Tuesday Blitz January 10 Late 2023"]
[White "Tan, Zhongyi"]
[Black "Gerbelli Neto, Eduardo"]
[WhiteFideId "8603642"]
[BlackFideId "2103281"]
[WhiteElo "2517"]
[BlackElo "2114"]
[Result "1-0"]
[Round "10"]
[TimeControl "180+2"]
[Date "2023.01.10"]
[WhiteClock "0:00:31"]
[BlackClock "0:00:09"]

1. d4 {[%clk 0:00:00]}  d5 {[%clk 0:00:00]} 2. c4 {[%clk 0:02:55]}  c6 {[%clk 0:02:59]} 3. Nf3 {[%clk 0:02:54]}  Nf6 {[%clk 0:02:59]} 4. e3 {[%clk 0:02:53]}  e6 {[%clk 0:02:59]} 5. Nbd2 {[%clk 0:02:54]}  Nbd7 {[%clk 0:03:00]} 6. b3 {[%clk 0:02:47]}  Bd6 {[%clk 0:02:59]} 7. Bb2 {[%clk 0:02:47]}  Qe7 {[%clk 0:02:53]} 8. Bd3 {[%clk 0:02:47]}  e5 {[%clk 0:02:46]} 9. dxe5 {[%clk 0:02:47]}  Nxe5 {[%clk 0:02:45]} 10. Nxe5 {[%clk 0:02:44]}  Bxe5 {[%clk 0:02:46]} 11. Bxe5 {[%clk 0:02:44]}  Qxe5 {[%clk 0:02:47]} 12. O-O {[%clk 0:02:43]}  O-O {[%clk 0:02:47]} 13. Nf3 {[%clk 0:02:42]}  Qh5 {[%clk 0:02:41]} 14. cxd5 {[%clk 0:02:41]}  Nxd5 {[%clk 0:02:39]} 15. Nd4 {[%clk 0:02:38]}  Qxd1 {[%clk 0:02:36]} 16. Rfxd1 {[%clk 0:02:34]}  g6 {[%clk 0:02:34]} 17. Bc4 {[%clk 0:02:34]}  Nc3 {[%clk 0:02:28]} 18. Rdc1 {[%clk 0:02:30]}  Ne4 {[%clk 0:02:23]} 19. f3 {[%clk 0:02:29]}  Nd6 {[%clk 0:02:23]} 20. Be2 {[%clk 0:02:26]}  Nf5 {[%clk 0:02:23]} 21. Nxf5 {[%clk 0:02:22]}  Bxf5 {[%clk 0:02:21]} 22. e4 {[%clk 0:02:19]}  Be6 {[%clk 0:02:22]} 23. Kf2 {[%clk 0:02:19]}  Rfd8 {[%clk 0:02:20]} 24. Rd1 {[%clk 0:02:20]}  Kf8 {[%clk 0:02:20]} 25. Ke3 {[%clk 0:02:18]}  Ke7 {[%clk 0:02:20]} 26. g4 {[%clk 0:02:18]}  f6 {[%clk 0:02:19]} 27. h4 {[%clk 0:02:17]}  h6 {[%clk 0:02:19]} 28. f4 {[%clk 0:02:16]}  a5 {[%clk 0:02:17]} 29. f5 {[%clk 0:02:16]}  Bf7 {[%clk 0:02:09]} 30. fxg6 {[%clk 0:02:07]}  Bxg6 {[%clk 0:02:04]} 31. Bf3 {[%clk 0:01:43]}  a4 {[%clk 0:02:03]} 32. Rxd8 {[%clk 0:01:41]}  Kxd8 {[%clk 0:01:46]} 33. Rd1+ {[%clk 0:01:39]}  Ke7 {[%clk 0:01:46]} 34. Kf4 {[%clk 0:01:37]}  axb3 {[%clk 0:01:46]} 35. axb3 {[%clk 0:01:36]}  Ra3 {[%clk 0:01:46]} 36. Rd3 {[%clk 0:01:36]}  Bf7 {[%clk 0:01:44]} 37. Bd1 {[%clk 0:01:35]}  c5 {[%clk 0:01:43]} 38. Re3 {[%clk 0:01:34]}  Ra1 {[%clk 0:01:36]} 39. Be2 {[%clk 0:01:16]}  Rb1 {[%clk 0:01:20]} 40. Bc4 {[%clk 0:01:15]}  Bxc4 {[%clk 0:01:11]} 41. bxc4 {[%clk 0:01:09]}  Rc1 {[%clk 0:01:02]} 42. Rb3 {[%clk 0:01:10]}  Rxc4 {[%clk 0:01:03]} 43. Rxb7+ {[%clk 0:01:10]}  Ke6 {[%clk 0:00:57]} 44. Rb6+ {[%clk 0:01:10]}  Ke7 {[%clk 0:00:58]} 45. Kf5 {[%clk 0:01:10]}  Rc1 {[%clk 0:00:57]} 46. Rb7+ {[%clk 0:01:10]}  Kd6 {[%clk 0:00:55]} 47. Rb6+ {[%clk 0:01:09]}  Ke7 {[%clk 0:00:55]} 48. Re6+ {[%clk 0:01:09]}  Kd7 {[%clk 0:00:54]} 49. Kxf6 {[%clk 0:01:08]}  c4 {[%clk 0:00:54]} 50. Re7+ {[%clk 0:01:05]}  Kd6 {[%clk 0:00:42]} 51. e5+ {[%clk 0:01:03]}  Kd5 {[%clk 0:00:37]} 52. Rd7+ {[%clk 0:01:03]}  Kc6 {[%clk 0:00:38]} 53. Ke7 {[%clk 0:01:02]}  c3 {[%clk 0:00:36]} 54. e6 {[%clk 0:00:48]}  c2 {[%clk 0:00:29]} 55. Rd8 {[%clk 0:00:47]}  Kc7 {[%clk 0:00:27]} 56. Rd3 {[%clk 0:00:42]}  Kb6 {[%clk 0:00:22]} 57. Rc3 {[%clk 0:00:41]}  Rg1 {[%clk 0:00:11]} 58. Rxc2 {[%clk 0:00:42]}  Rxg4 {[%clk 0:00:09]} 59. h5 {[%clk 0:00:40]}  Rg5 {[%clk 0:00:09]} 60. Kf6 {[%clk 0:00:31]} 1-0


[Site "https://www.chess.com"]

[Event "Titled Tuesday Blitz January 10 Late 2023"]
[White "Yashmetov, Mikhail"]
[Black "Jodorcovsky Werjivker, Paulo"]
[WhiteFideId "24198900"]
[BlackFideId "3700305"]
[WhiteElo "2323"]
[BlackElo "2182"]
[Result "1-0"]
[Round "10"]
[TimeControl "180+2"]
[Date "2023.01.10"]
[WhiteClock "0:00:18"]
[BlackClock "0:00:04"]

1. d4 {[%clk 0:00:00]}  f5 {[%clk 0:00:00]} 2. c4 {[%clk 0:03:00]}  Nf6 {[%clk 0:02:58]} 3. g3 {[%clk 0:03:01]}  e6 {[%clk 0:02:56]} 4. Bg2 {[%clk 0:03:01]}  Be7 {[%clk 0:02:57]} 5. Nf3 {[%clk 0:03:01]}  O-O {[%clk 0:02:45]} 6. O-O {[%clk 0:03:01]}  d6 {[%clk 0:02:46]} 7. Nc3 {[%clk 0:03:02]}  Ne4 {[%clk 0:02:45]} 8. Qd3 {[%clk 0:03:01]}  Nxc3 {[%clk 0:02:45]} 9. Qxc3 {[%clk 0:02:44]}  Bf6 {[%clk 0:02:28]} 10. b4 {[%clk 0:02:45]}  Nc6 {[%clk 0:02:24]} 11. b5 {[%clk 0:02:44]}  Ne7 {[%clk 0:02:18]} 12. Bg5 {[%clk 0:02:37]}  Ng6 {[%clk 0:02:16]} 13. Bxf6 {[%clk 0:02:32]}  Qxf6 {[%clk 0:02:08]} 14. Nd2 {[%clk 0:02:31]}  e5 {[%clk 0:02:09]} 15. dxe5 {[%clk 0:02:27]}  dxe5 {[%clk 0:02:04]} 16. Bd5+ {[%clk 0:02:24]}  Be6 {[%clk 0:02:05]} 17. Bxb7 {[%clk 0:02:24]}  Rad8 {[%clk 0:02:04]} 18. Nb3 {[%clk 0:02:22]}  Qg5 {[%clk 0:02:02]} 19. Bg2 {[%clk 0:02:15]}  f4 {[%clk 0:01:44]} 20. Rad1 {[%clk 0:02:09]}  fxg3 {[%clk 0:01:40]} 21. hxg3 {[%clk 0:02:08]}  h5 {[%clk 0:01:34]} 22. Nc5 {[%clk 0:02:06]}  Bf5 {[%clk 0:01:33]} 23. Qc1 {[%clk 0:02:00]}  Qe7 {[%clk 0:01:23]} 24. Ne4 {[%clk 0:01:49]}  Bxe4 {[%clk 0:01:19]} 25. Bxe4 {[%clk 0:01:35]}  Qf6 {[%clk 0:00:49]} 26. Rxd8 {[%clk 0:01:36]}  Rxd8 {[%clk 0:00:49]} 27. Qc2 {[%clk 0:01:26]}  Nf8 {[%clk 0:00:48]} 28. Kg2 {[%clk 0:01:25]}  h4 {[%clk 0:00:43]} 29. Rh1 {[%clk 0:01:21]}  hxg3 {[%clk 0:00:43]} 30. fxg3 {[%clk 0:01:17]}  Rd4 {[%clk 0:00:41]} 31. Bd5+ {[%clk 0:01:17]}  Ne6 {[%clk 0:00:32]} 32. e3 {[%clk 0:01:16]}  Rxd5 {[%clk 0:00:28]} 33. cxd5 {[%clk 0:00:52]}  Ng5 {[%clk 0:00:05]} 34. Qf2 {[%clk 0:00:51]}  Qd6 {[%clk 0:00:06]} 35. e4 {[%clk 0:00:37]}  Nxe4 {[%clk 0:00:05]} 36. Qf3 {[%clk 0:00:25]}  Qxd5 {[%clk 0:00:04]} 37. Re1 {[%clk 0:00:18]} 1-0


[Site "https://www.chess.com"]

[Event "Titled Tuesday Blitz January 10 Late 2023"]
[White "Weisz, Bryan"]
[Black "Floresvillar Gonzalez, Luis Migu"]
[WhiteFideId "30934133"]
[BlackFideId "5100542"]
[WhiteElo "1973"]
[BlackElo "2043"]
[Result "0-1"]
[Round "10"]
[TimeControl "180+2"]
[Date "2023.01.10"]
[WhiteClock "0:00:08"]
[BlackClock "0:00:15"]

1. c4 {[%clk 0:00:00]}  e6 {[%clk 0:00:00]} 2. Nc3 {[%clk 0:02:57]}  c5 {[%clk 0:02:59]} 3. e4 {[%clk 0:02:57]}  Nc6 {[%clk 0:02:57]} 4. Nf3 {[%clk 0:02:54]}  d6 {[%clk 0:02:56]} 5. d4 {[%clk 0:02:52]}  cxd4 {[%clk 0:02:56]} 6. Nxd4 {[%clk 0:02:52]}  Nf6 {[%clk 0:02:56]} 7. Be3 {[%clk 0:02:53]}  Be7 {[%clk 0:02:55]} 8. Be2 {[%clk 0:02:51]}  O-O {[%clk 0:02:55]} 9. O-O {[%clk 0:02:51]}  Bd7 {[%clk 0:02:53]} 10. Qd2 {[%clk 0:02:50]}  Nxd4 {[%clk 0:02:37]} 11. Bxd4 {[%clk 0:02:39]}  a6 {[%clk 0:02:36]} 12. a4 {[%clk 0:02:39]}  Qc7 {[%clk 0:02:29]} 13. a5 {[%clk 0:02:31]}  Bc6 {[%clk 0:02:28]} 14. Bb6 {[%clk 0:02:31]}  Qb8 {[%clk 0:02:26]} 15. Bf3 {[%clk 0:02:01]}  Bd8 {[%clk 0:02:13]} 16. Qe3 {[%clk 0:01:32]}  Bxb6 {[%clk 0:02:11]} 17. Qxb6 {[%clk 0:01:24]}  Qd8 {[%clk 0:02:11]} 18. Rfd1 {[%clk 0:01:21]}  Qxb6 {[%clk 0:02:09]} 19. axb6 {[%clk 0:01:17]}  Rad8 {[%clk 0:02:08]} 20. Rd2 {[%clk 0:01:17]}  Nd7 {[%clk 0:02:07]} 21. Nd5 {[%clk 0:01:02]}  exd5 {[%clk 0:01:53]} 22. exd5 {[%clk 0:00:36]}  Nxb6 {[%clk 0:01:42]} 23. dxc6 {[%clk 0:00:36]}  bxc6 {[%clk 0:01:42]} 24. Bxc6 {[%clk 0:00:36]}  Nxc4 {[%clk 0:01:42]} 25. Rc2 {[%clk 0:00:26]}  Ne5 {[%clk 0:01:42]} 26. Rxa6 {[%clk 0:00:20]}  Nxc6 {[%clk 0:01:38]} 27. Raxc6 {[%clk 0:00:10]}  d5 {[%clk 0:01:37]} 28. Rd2 {[%clk 0:00:10]}  Rd7 {[%clk 0:01:36]} 29. Kf1 {[%clk 0:00:07]}  g6 {[%clk 0:01:34]} 30. b4 {[%clk 0:00:07]}  Rb8 {[%clk 0:01:30]} 31. Rd4 {[%clk 0:00:06]}  Rb5 {[%clk 0:01:29]} 32. Rc5 {[%clk 0:00:06]}  Rxc5 {[%clk 0:01:23]} 33. bxc5 {[%clk 0:00:06]}  Kg7 {[%clk 0:01:21]} 34. f4 {[%clk 0:00:07]}  f5 {[%clk 0:01:20]} 35. Ke2 {[%clk 0:00:06]}  Kf6 {[%clk 0:01:18]} 36. Kd3 {[%clk 0:00:05]}  Ke6 {[%clk 0:01:18]} 37. Ra4 {[%clk 0:00:03]}  Rc7 {[%clk 0:01:18]} 38. Kd4 {[%clk 0:00:04]}  Rc6 {[%clk 0:01:15]} 39. Ra8 {[%clk 0:00:04]}  h5 {[%clk 0:01:13]} 40. Re8+ {[%clk 0:00:04]}  Kd7 {[%clk 0:01:12]} 41. Re5 {[%clk 0:00:02]}  Ra6 {[%clk 0:00:55]} 42. Rxd5+ {[%clk 0:00:03]}  Ke7 {[%clk 0:00:53]} 43. Re5+ {[%clk 0:00:04]}  Kd7 {[%clk 0:00:47]} 44. Kd5 {[%clk 0:00:04]}  Ra2 {[%clk 0:00:44]} 45. c6+ {[%clk 0:00:04]}  Kd8 {[%clk 0:00:44]} 46. Ke6 {[%clk 0:00:05]}  Rxg2 {[%clk 0:00:42]} 47. Kf7 {[%clk 0:00:05]}  Kc7 {[%clk 0:00:34]} 48. Re6 {[%clk 0:00:03]}  Rg4 {[%clk 0:00:33]} 49. Rxg6 {[%clk 0:00:03]}  Rxf4 {[%clk 0:00:32]} 50. Kg7 {[%clk 0:00:04]}  Rg4 {[%clk 0:00:32]} 51. Kh6 {[%clk 0:00:03]}  Rxg6+ {[%clk 0:00:30]} 52. Kxg6 {[%clk 0:00:03]}  f4 {[%clk 0:00:29]} 53. Kxh5 {[%clk 0:00:03]}  f3 {[%clk 0:00:29]} 54. Kg6 {[%clk 0:00:02]}  f2 {[%clk 0:00:30]} 55. h4 {[%clk 0:00:03]}  f1=Q {[%clk 0:00:30]} 56. h5 {[%clk 0:00:04]}  Qg2+ {[%clk 0:00:29]} 57. Kh7 {[%clk 0:00:04]}  Qg5 {[%clk 0:00:24]} 58. h6 {[%clk 0:00:04]}  Kxc6 {[%clk 0:00:21]} 59. Kh8 {[%clk 0:00:04]}  Qxh6+ {[%clk 0:00:22]} 60. Kg8 {[%clk 0:00:04]}  Qe6+ {[%clk 0:00:22]} 61. Kf8 {[%clk 0:00:05]}  Kd5 {[%clk 0:00:21]} 62. Kg7 {[%clk 0:00:05]}  Ke5 {[%clk 0:00:21]} 63. Kf8 {[%clk 0:00:06]}  Kf5 {[%clk 0:00:21]} 64. Kg7 {[%clk 0:00:07]}  Qb6 {[%clk 0:00:18]} 65. Kf7 {[%clk 0:00:07]}  Qc7+ {[%clk 0:00:17]} 66. Ke8 {[%clk 0:00:07]}  Ke6 {[%clk 0:00:16]} 67. Kf8 {[%clk 0:00:08]}  Qf7# {[%clk 0:00:15]} 0-1


[Site "https://www.chess.com"]

[Event "Titled Tuesday Blitz January 10 Late 2023"]
[White "Rose, Felix"]
[Black "Papp, Petra"]
[WhiteFideId "5105722"]
[BlackFideId "739049"]
[WhiteElo "2091"]
[BlackElo "2343"]
[Result "0-1"]
[Round "10"]
[TimeControl "180+2"]
[Date "2023.01.10"]
[WhiteClock "0:00:04"]
[BlackClock "0:00:04"]

1. e4 {[%clk 0:00:00]}  c5 {[%clk 0:00:00]} 2. Nf3 {[%clk 0:03:00]}  d6 {[%clk 0:02:59]} 3. d4 {[%clk 0:02:57]}  cxd4 {[%clk 0:02:59]} 4. Nxd4 {[%clk 0:02:57]}  Nf6 {[%clk 0:03:00]} 5. Nc3 {[%clk 0:02:57]}  a6 {[%clk 0:03:01]} 6. f3 {[%clk 0:02:57]}  e5 {[%clk 0:03:00]} 7. Nb3 {[%clk 0:02:56]}  Be7 {[%clk 0:02:57]} 8. Be3 {[%clk 0:02:57]}  Be6 {[%clk 0:02:57]} 9. Qd2 {[%clk 0:02:57]}  Nbd7 {[%clk 0:02:55]} 10. O-O-O {[%clk 0:02:57]}  O-O {[%clk 0:02:49]} 11. g4 {[%clk 0:02:57]}  b5 {[%clk 0:02:49]} 12. g5 {[%clk 0:02:58]}  Nh5 {[%clk 0:02:49]} 13. Kb1 {[%clk 0:02:58]}  b4 {[%clk 0:02:49]} 14. Nd5 {[%clk 0:02:58]}  Bxd5 {[%clk 0:02:24]} 15. exd5 {[%clk 0:02:49]}  a5 {[%clk 0:02:17]} 16. Bh3 {[%clk 0:02:50]}  f5 {[%clk 0:02:15]} 17. gxf6 {[%clk 0:02:48]}  Nhxf6 {[%clk 0:02:04]} 18. Rhg1 {[%clk 0:02:39]}  Kh8 {[%clk 0:01:54]} 19. Be6 {[%clk 0:02:35]}  a4 {[%clk 0:01:52]} 20. Nc1 {[%clk 0:02:21]}  b3 {[%clk 0:01:44]} 21. cxb3 {[%clk 0:02:00]}  axb3 {[%clk 0:01:39]} 22. Nxb3 {[%clk 0:01:53]}  Qb8 {[%clk 0:01:40]} 23. Rg3 {[%clk 0:01:48]}  Qb5 {[%clk 0:01:40]} 24. Rdg1 {[%clk 0:01:11]}  g6 {[%clk 0:01:36]} 25. Bh6 {[%clk 0:01:08]}  Rfb8 {[%clk 0:01:29]} 26. Bg5 {[%clk 0:00:52]}  Qa4 {[%clk 0:01:18]} 27. Nc1 {[%clk 0:00:29]}  Nc5 {[%clk 0:01:05]} 28. Bxf6+ {[%clk 0:00:24]}  Bxf6 {[%clk 0:00:50]} 29. Rxg6 {[%clk 0:00:18]}  Nd7 {[%clk 0:00:49]} 30. Qh6 {[%clk 0:00:19]}  Qd4 {[%clk 0:00:31]} 31. b3 {[%clk 0:00:11]}  Nc5 {[%clk 0:00:23]} 32. Rxf6 {[%clk 0:00:04]}  Qxg1 {[%clk 0:00:04]} 0-1


[Site "https://www.chess.com"]

[Event "Titled Tuesday Blitz January 10 Late 2023"]
[White "Dias, Joao Batista"]
[Black "Abdyzhaparov, Aidar"]
[WhiteFideId "2108240"]
[BlackFideId "13800361"]
[WhiteElo "1796"]
[BlackElo "1978"]
[Result "1-0"]
[Round "10"]
[TimeControl "180+2"]
[Date "2023.01.10"]
[WhiteClock "0:00:47"]
[BlackClock "0:00:01"]

1. e4 {[%clk 0:00:00]}  d6 {[%clk 0:00:00]} 2. d4 {[%clk 0:03:00]}  Nf6 {[%clk 0:02:55]} 3. Bd3 {[%clk 0:03:00]}  e5 {[%clk 0:02:56]} 4. c3 {[%clk 0:02:59]}  d5 {[%clk 0:02:57]} 5. dxe5 {[%clk 0:02:58]}  Nxe4 {[%clk 0:02:57]} 6. Bxe4 {[%clk 0:02:56]}  dxe4 {[%clk 0:02:57]} 7. Qxd8+ {[%clk 0:02:56]}  Kxd8 {[%clk 0:02:58]} 8. Ne2 {[%clk 0:02:56]}  Bf5 {[%clk 0:02:59]} 9. Ng3 {[%clk 0:02:55]}  Bg6 {[%clk 0:02:59]} 10. Nd2 {[%clk 0:02:53]}  Nd7 {[%clk 0:02:59]} 11. Ndxe4 {[%clk 0:02:53]}  Nxe5 {[%clk 0:02:59]} 12. O-O {[%clk 0:02:53]}  Be7 {[%clk 0:02:59]} 13. Rd1+ {[%clk 0:02:51]}  Kc8 {[%clk 0:02:54]} 14. Bf4 {[%clk 0:02:51]}  f6 {[%clk 0:02:52]} 15. Bxe5 {[%clk 0:02:50]}  fxe5 {[%clk 0:02:45]} 16. Rd5 {[%clk 0:02:44]}  Bf6 {[%clk 0:02:44]} 17. Rad1 {[%clk 0:02:40]}  h5 {[%clk 0:02:36]} 18. h4 {[%clk 0:02:39]}  b6 {[%clk 0:02:32]} 19. Ng5 {[%clk 0:02:32]}  Rd8 {[%clk 0:02:22]} 20. Rxd8+ {[%clk 0:02:23]}  Bxd8 {[%clk 0:02:12]} 21. Rd5 {[%clk 0:02:22]}  Bf6 {[%clk 0:02:13]} 22. Kh2 {[%clk 0:02:15]}  c6 {[%clk 0:02:11]} 23. Rd1 {[%clk 0:02:12]}  Kc7 {[%clk 0:02:08]} 24. Kh3 {[%clk 0:02:04]}  Bxg5 {[%clk 0:02:08]} 25. hxg5 {[%clk 0:02:04]}  Rf8 {[%clk 0:01:46]} 26. f3 {[%clk 0:02:04]}  Rf4 {[%clk 0:01:47]} 27. Rd2 {[%clk 0:02:02]}  h4 {[%clk 0:01:43]} 28. Ne2 {[%clk 0:01:53]}  Bf5+ {[%clk 0:01:15]} 29. g4 {[%clk 0:01:48]}  hxg3+ {[%clk 0:01:15]} 30. Kxg3 {[%clk 0:01:43]}  Ra4 {[%clk 0:01:16]} 31. b3 {[%clk 0:01:42]}  Ra5 {[%clk 0:01:06]} 32. f4 {[%clk 0:01:40]}  exf4+ {[%clk 0:01:04]} 33. Kxf4 {[%clk 0:01:28]}  Bb1 {[%clk 0:00:54]} 34. a4 {[%clk 0:01:27]}  Rf5+ {[%clk 0:00:53]} 35. Kg4 {[%clk 0:01:25]}  Rf2 {[%clk 0:00:53]} 36. Kg3 {[%clk 0:01:24]}  Rf7 {[%clk 0:00:51]} 37. Nf4 {[%clk 0:01:23]}  Bf5 {[%clk 0:00:47]} 38. Rd4 {[%clk 0:01:19]}  g6 {[%clk 0:00:42]} 39. Rd2 {[%clk 0:01:14]}  Re7 {[%clk 0:00:40]} 40. Re2 {[%clk 0:01:06]}  Rd7 {[%clk 0:00:36]} 41. Ne6+ {[%clk 0:01:06]}  Kb7 {[%clk 0:00:36]} 42. Nd4 {[%clk 0:01:00]}  Bd3 {[%clk 0:00:12]} 43. Re3 {[%clk 0:00:59]}  Bb1 {[%clk 0:00:09]} 44. Kf4 {[%clk 0:00:58]}  c5 {[%clk 0:00:05]} 45. Ne6 {[%clk 0:00:57]}  Bf5 {[%clk 0:00:04]} 46. Ke5 {[%clk 0:00:49]}  Re7 {[%clk 0:00:01]} 47. Kf6 {[%clk 0:00:47]} 1-0


[Site "https://www.chess.com"]

[Event "Titled Tuesday Blitz January 10 Late 2023"]
[White "Ali, Kairi G."]
[Black "Thiel, Thomas"]
[WhiteFideId "9206655"]
[BlackFideId "4615964"]
[WhiteElo "1802"]
[BlackElo "2234"]
[Result "1-0"]
[Round "10"]
[TimeControl "180+2"]
[Date "2023.01.10"]
[WhiteClock "0:00:09"]
[BlackClock "0:00:02"]

1. e4 {[%clk 0:00:00]}  d5 {[%clk 0:00:00]} 2. exd5 {[%clk 0:03:00]}  Nf6 {[%clk 0:02:59]} 3. d4 {[%clk 0:03:00]}  Nxd5 {[%clk 0:02:59]} 4. Nf3 {[%clk 0:03:00]}  g6 {[%clk 0:02:57]} 5. Ke2 {[%clk 0:02:59]}  Bg7 {[%clk 0:02:57]} 6. c3 {[%clk 0:02:15]}  O-O {[%clk 0:02:54]} 7. g3 {[%clk 0:02:15]}  Nc6 {[%clk 0:02:52]} 8. Bg2 {[%clk 0:02:15]}  b6 {[%clk 0:02:48]} 9. Na3 {[%clk 0:02:16]}  Ba6+ {[%clk 0:02:46]} 10. Ke1 {[%clk 0:02:14]}  Re8 {[%clk 0:02:46]} 11. Qa4 {[%clk 0:02:13]}  Bb7 {[%clk 0:02:41]} 12. Bg5 {[%clk 0:02:13]}  a6 {[%clk 0:02:24]} 13. h4 {[%clk 0:02:11]}  h6 {[%clk 0:02:22]} 14. Bd2 {[%clk 0:01:59]}  b5 {[%clk 0:02:22]} 15. Qb3 {[%clk 0:01:59]}  Nb6 {[%clk 0:02:18]} 16. Kf1 {[%clk 0:01:58]}  Na5 {[%clk 0:02:15]} 17. Qc2 {[%clk 0:01:47]}  Nac4 {[%clk 0:02:12]} 18. Nxc4 {[%clk 0:01:43]}  Nxc4 {[%clk 0:02:10]} 19. Bf4 {[%clk 0:01:43]}  Rc8 {[%clk 0:02:10]} 20. b3 {[%clk 0:01:42]}  Nd6 {[%clk 0:01:48]} 21. Ne5 {[%clk 0:01:32]}  Bxg2+ {[%clk 0:01:46]} 22. Kxg2 {[%clk 0:01:30]}  c5 {[%clk 0:01:43]} 23. d5 {[%clk 0:01:31]}  c4 {[%clk 0:01:37]} 24. b4 {[%clk 0:01:27]}  Qb6 {[%clk 0:01:34]} 25. Rhd1 {[%clk 0:01:24]}  Bxe5 {[%clk 0:01:24]} 26. Bxe5 {[%clk 0:01:15]}  h5 {[%clk 0:01:01]} 27. Qd2 {[%clk 0:01:14]}  Nf5 {[%clk 0:01:00]} 28. Qf4 {[%clk 0:01:08]}  Red8 {[%clk 0:00:53]} 29. a4 {[%clk 0:00:47]}  f6 {[%clk 0:00:19]} 30. Bd4 {[%clk 0:00:42]}  Qb7 {[%clk 0:00:17]} 31. axb5 {[%clk 0:00:38]}  axb5 {[%clk 0:00:14]} 32. Qf3 {[%clk 0:00:35]}  Qxd5 {[%clk 0:00:12]} 33. Qxd5+ {[%clk 0:00:25]}  Rxd5 {[%clk 0:00:11]} 34. Bc5 {[%clk 0:00:22]}  Rcd8 {[%clk 0:00:12]} 35. Rxd5 {[%clk 0:00:21]}  Rxd5 {[%clk 0:00:08]} 36. Ra8+ {[%clk 0:00:18]}  Kf7 {[%clk 0:00:09]} 37. Rb8 {[%clk 0:00:15]}  Rd3 {[%clk 0:00:07]} 38. Rxb5 {[%clk 0:00:13]}  Rxc3 {[%clk 0:00:07]} 39. Rb7 {[%clk 0:00:13]}  Rb3 {[%clk 0:00:06]} 40. Ra7 {[%clk 0:00:13]}  c3 {[%clk 0:00:02]} 41. Ra1 {[%clk 0:00:09]} 1-0


[Site "https://www.chess.com"]

[Event "Titled Tuesday Blitz January 10 Late 2023"]
[White "Smith, Garrett L"]
[Black "Thomas, Anysia"]
[WhiteFideId "2024829"]
[BlackFideId "670472"]
[WhiteElo "2047"]
[BlackElo "2147"]
[Result "1-0"]
[Round "10"]
[TimeControl "180+2"]
[Date "2023.01.10"]
[WhiteClock "0:00:18"]
[BlackClock "0:00:02"]

1. e4 {[%clk 0:00:00]}  c5 {[%clk 0:00:00]} 2. a3 {[%clk 0:03:00]}  Nc6 {[%clk 0:02:59]} 3. b4 {[%clk 0:03:00]}  cxb4 {[%clk 0:02:58]} 4. axb4 {[%clk 0:03:00]}  Nxb4 {[%clk 0:02:58]} 5. d4 {[%clk 0:03:01]}  d5 {[%clk 0:02:58]} 6. c3 {[%clk 0:03:02]}  Nc6 {[%clk 0:02:58]} 7. exd5 {[%clk 0:03:02]}  Qxd5 {[%clk 0:02:58]} 8. Na3 {[%clk 0:03:02]}  Nf6 {[%clk 0:02:57]} 9. Nb5 {[%clk 0:03:02]}  Qd8 {[%clk 0:02:53]} 10. d5 {[%clk 0:02:55]}  Ne5 {[%clk 0:02:53]} 11. Bf4 {[%clk 0:02:45]}  Nfd7 {[%clk 0:02:46]} 12. Nf3 {[%clk 0:02:45]}  f6 {[%clk 0:02:41]} 13. Bd3 {[%clk 0:02:38]}  g6 {[%clk 0:02:14]} 14. Bxe5 {[%clk 0:01:32]}  Nxe5 {[%clk 0:02:09]} 15. Nxe5 {[%clk 0:01:20]}  fxe5 {[%clk 0:02:03]} 16. Qc2 {[%clk 0:01:20]}  Qb6 {[%clk 0:02:04]} 17. c4 {[%clk 0:01:07]}  Kf7 {[%clk 0:01:55]} 18. c5 {[%clk 0:01:04]}  Qf6 {[%clk 0:01:34]} 19. Nc7 {[%clk 0:01:02]}  Rb8 {[%clk 0:01:33]} 20. Rxa7 {[%clk 0:00:58]}  Bh6 {[%clk 0:01:31]} 21. d6 {[%clk 0:00:58]}  exd6 {[%clk 0:01:27]} 22. Qb3+ {[%clk 0:00:49]}  Kg7 {[%clk 0:01:08]} 23. cxd6 {[%clk 0:00:47]}  Qxd6 {[%clk 0:01:08]} 24. Nb5 {[%clk 0:00:35]}  Qf6 {[%clk 0:01:05]} 25. O-O {[%clk 0:00:34]}  Rf8 {[%clk 0:00:45]} 26. Bc4 {[%clk 0:00:33]}  Bd7 {[%clk 0:00:45]} 27. Ra2 {[%clk 0:00:29]}  Bc6 {[%clk 0:00:37]} 28. Re2 {[%clk 0:00:29]}  Qg5 {[%clk 0:00:36]} 29. f3 {[%clk 0:00:29]}  Rbe8 {[%clk 0:00:30]} 30. Nc7 {[%clk 0:00:29]}  Re7 {[%clk 0:00:19]} 31. Ne6+ {[%clk 0:00:29]}  Rxe6 {[%clk 0:00:18]} 32. Bxe6 {[%clk 0:00:30]}  Kh8 {[%clk 0:00:17]} 33. Bd5 {[%clk 0:00:31]}  Bxd5 {[%clk 0:00:16]} 34. Qxd5 {[%clk 0:00:31]}  Bg7 {[%clk 0:00:13]} 35. Rfe1 {[%clk 0:00:31]}  h5 {[%clk 0:00:13]} 36. h3 {[%clk 0:00:31]}  h4 {[%clk 0:00:11]} 37. Qxb7 {[%clk 0:00:31]}  Qg3 {[%clk 0:00:11]} 38. Qe4 {[%clk 0:00:31]}  Rf4 {[%clk 0:00:10]} 39. Qa8+ {[%clk 0:00:29]}  Kh7 {[%clk 0:00:09]} 40. Qb7 {[%clk 0:00:26]}  Kh6 {[%clk 0:00:09]} 41. Qc6 {[%clk 0:00:26]}  Rf6 {[%clk 0:00:08]} 42. Qc1+ {[%clk 0:00:22]}  Rf4 {[%clk 0:00:07]} 43. Qe3 {[%clk 0:00:22]}  Kh7 {[%clk 0:00:07]} 44. Qf2 {[%clk 0:00:22]}  Qg5 {[%clk 0:00:07]} 45. Re4 {[%clk 0:00:22]}  Bf6 {[%clk 0:00:06]} 46. Rxf4 {[%clk 0:00:21]}  exf4 {[%clk 0:00:03]} 47. Rd1 {[%clk 0:00:20]}  Qf5 {[%clk 0:00:04]} 48. Qb6 {[%clk 0:00:20]}  Qc2 {[%clk 0:00:02]} 49. Rd7+ {[%clk 0:00:18]} 1-0


[Site "https://www.chess.com"]

[Event "Titled Tuesday Blitz January 10 Late 2023"]
[White "Antonio, Jorge Carlos"]
[Black "Harish, Neeraj"]
[WhiteFideId "113190"]
[BlackFideId "30958130"]
[WhiteElo "2277"]
[BlackElo "2232"]
[Result "0-1"]
[Round "10"]
[TimeControl "180+2"]
[Date "2023.01.10"]
[WhiteClock "0:01:04"]
[BlackClock "0:00:18"]

1. d4 {[%clk 0:00:00]}  Nf6 {[%clk 0:00:00]} 2. Nf3 {[%clk 0:03:00]}  g6 {[%clk 0:02:57]} 3. c4 {[%clk 0:03:00]}  Bg7 {[%clk 0:02:57]} 4. Nc3 {[%clk 0:03:01]}  d5 {[%clk 0:02:57]} 5. Bg5 {[%clk 0:02:57]}  Ne4 {[%clk 0:02:57]} 6. Bf4 {[%clk 0:02:52]}  Nxc3 {[%clk 0:02:51]} 7. bxc3 {[%clk 0:02:49]}  c5 {[%clk 0:02:48]} 8. e3 {[%clk 0:02:45]}  Nc6 {[%clk 0:02:49]} 9. cxd5 {[%clk 0:02:41]}  Qxd5 {[%clk 0:02:40]} 10. Be2 {[%clk 0:02:37]}  cxd4 {[%clk 0:02:37]} 11. cxd4 {[%clk 0:02:34]}  O-O {[%clk 0:02:35]} 12. O-O {[%clk 0:02:31]}  Bf5 {[%clk 0:02:22]} 13. Qa4 {[%clk 0:02:27]}  Rac8 {[%clk 0:02:15]} 14. Bb5 {[%clk 0:02:23]}  a6 {[%clk 0:01:58]} 15. Be2 {[%clk 0:02:14]}  Qd7 {[%clk 0:01:53]} 16. Qa3 {[%clk 0:02:10]}  Rfd8 {[%clk 0:01:32]} 17. Rac1 {[%clk 0:02:02]}  Be4 {[%clk 0:01:30]} 18. Ng5 {[%clk 0:01:57]}  Bd5 {[%clk 0:00:58]} 19. Bf3 {[%clk 0:01:46]}  Bxf3 {[%clk 0:00:44]} 20. Nxf3 {[%clk 0:01:42]}  Re8 {[%clk 0:00:43]} 21. Rfd1 {[%clk 0:01:41]}  Qd5 {[%clk 0:00:25]} 22. Qb2 {[%clk 0:01:32]}  b5 {[%clk 0:00:21]} 23. Rc5 {[%clk 0:01:23]}  Qd7 {[%clk 0:00:19]} 24. Rdc1 {[%clk 0:01:19]}  Na5 {[%clk 0:00:18]} 25. Rxc8 {[%clk 0:01:13]}  Rxc8 {[%clk 0:00:16]} 26. Rxc8+ {[%clk 0:01:09]}  Qxc8 {[%clk 0:00:17]} 27. Qb3 {[%clk 0:01:04]}  Nxb3 {[%clk 0:00:18]} 0-1


[Site "https://www.chess.com"]